bitfinex/quotes_ETHUSD_20240823
["timestamp","ask_amount","ask_price","bid_price","bid_amount"]
[1724438221967,2.30059946,2732.6,2732.1,2.2601]
[1724438222726,2.30059946,2732.7,2732.1,2.2601]
[1724438222866,2.30059946,2732.8,2732.1,3.66008]
[1724438223069,2.30059946,2732.8,2732.2,2.838008]
[1724438223911,2.30059946,2732.8,2732.2,6.497978]
[1724438224731,3.0,2733.0,2732.2,6.497978]
[1724438224890,2.30026529,2732.9,2732.2,6.497978]
[1724438225221,2.30026529,2732.9,2732.3,1.0158058]
[1724438225768,2.30026529,2733.0,2732.4,2.355]
[1724438226273,2.30026529,2732.9,2732.4,2.355]
[1724438226476,5.30026529,2733.1,2732.4,6.01476]
[1724438226674,5.30026529,2733.1,2732.5,0.601476]
[1724438226919,2.30026529,2733.1,2732.4,2.355]
[1724438227218,2.30026529,2732.8,2732.4,2.355]
[1724438227422,2.30026529,2732.8,2732.0,2.355]
[1724438227574,2.30026529,2732.7,2732.0,2.355]
[1724438228518,2.30026529,2732.8,2732.0,6.01523]
[1724438228727,2.30026529,2732.8,2732.2,2.2802]
[1724438229386,5.68364284,2733.0,2732.2,2.2802]
[1724438229387,2.30026529,2732.9,2732.2,2.2802]
[1724438229591,3.0,2733.0,2732.2,2.2802]
[1724438229592,2.30026529,2732.8,2732.2,2.2802]
[1724438229790,5.68364284,2733.0,2732.1,0.601523]
[1724438229791,3.0,2733.0,2732.4,3.6597]
[1724438230106,3.1301956,2733.3,2732.5,0.59399]
[1724438230307,3.1301956,2733.3,2732.5,4.25363]
[1724438230509,3.1301956,2733.3,2732.6,6.08863]
[1724438230706,0.1301956,2733.3,2732.6,6.08863]
[1724438230906,0.1301956,2733.3,2732.6,9.74806]
[1724438231079,0.1301956,2733.3,2732.7,1.034205]
[1724438231280,0.1301956,2733.3,2733.0,3.65893]
[1724438231481,0.1301956,2733.3,2732.9,2.4292]
[1724438231723,0.1301956,2733.3,2733.2,6.08791]
[1724438232128,0.1301956,2733.3,2733.2,9.74662]
[1724438232283,0.1301956,2733.3,2733.2,7.062572]
[1724438232839,0.1301956,2733.3,2733.2,3.403862]
[1724438233002,0.1301956,2733.3,2733.2,7.062572]
[1724438233600,0.1301956,2733.3,2733.2,10.721282]
[1724438233859,0.1301956,2733.3,2733.2,7.062572]
[1724438234016,0.1301956,2733.3,2733.2,10.721282]
[1724438234580,0.1301956,2733.3,2733.2,3.403862]
[1724438235398,0.1301956,2733.3,2733.2,7.062572]
[1724438237617,0.1301956,2733.3,2733.2,10.721282]
[1724438238219,0.1301956,2733.3,2733.2,3.403862]
[1724438238383,0.1301956,2733.3,2733.2,2.4292]
[1724438240007,0.1301956,2733.3,2732.9,2.4204]
[1724438240902,3.7887756,2733.3,2732.9,2.4204]
[1724438241103,3.7887756,2733.3,2731.8,0.51695002]
[1724438241104,6.65873,2733.2,2732.4,2.4204]
[1724438241336,3.0,2733.2,2732.4,2.4204]
[1724438241544,0.98905606,2733.1,2732.4,2.4204]
[1724438241709,3.0,2733.2,2732.4,2.4204]
[1724438242209,3.1301956,2733.3,2732.4,2.4204]
[1724438242898,3.1301956,2733.3,2732.4,6.08013]
[1724438243343,3.1301956,2733.3,2732.4,2.4204]
[1724438243637,6.7887756,2733.3,2732.4,2.4204]
[1724438243836,1.04472956,2733.2,2732.4,2.4204]
[1724438243991,4.70346956,2733.2,2732.4,2.4204]
[1724438244198,1.04472956,2733.2,2732.4,2.4204]
[1724438245155,3.1301956,2733.3,2732.4,2.4204]
[1724438245445,0.1301956,2733.3,2732.4,2.4204]
[1724438245591,3.0,2733.2,2732.4,2.4204]
[1724438245789,3.7887756,2733.3,2732.4,2.4204]
[1724438246037,3.0,2733.2,2732.4,2.4204]
[1724438246340,3.0,2733.2,2732.5,0.24204]
[1724438246490,0.1301956,2733.3,2732.6,3.65946]
[1724438246694,3.7887856,2733.3,2732.5,0.24204]
[1724438246950,3.7887856,2733.3,2732.4,2.4204]
[1724438246951,3.659,2733.0,2732.4,2.4204]
[1724438247109,2.3185,2733.1,2732.4,2.4204]
[1724438247434,2.3185,2733.1,2732.0,3.66021]
[1724438247636,7.31815,2733.0,2732.1,2.346]
[1724438247793,3.0,2732.9,2731.5,2.346]
[1724438248113,3.65973,2732.5,2731.5,2.946706]
[1724438248637,6.65983,2732.4,2731.5,2.946706]
[1724438248840,3.0,2732.4,2731.5,2.346]
[1724438249341,3.65992,2732.3,2731.5,2.346]
[1724438249645,3.0,2732.2,2731.1,2.256]
[1724438249848,3.66032,2732.0,2731.1,2.256]
[1724438250157,3.0,2731.9,2731.1,2.256]
[1724438250361,3.0,2732.1,2731.4,3.66111]
[1724438250508,3.0,2732.2,2731.5,5.91689]
[1724438250697,3.0,2732.5,2731.5,5.91689]
[1724438251403,3.0,2732.5,2731.5,2.256]
[1724438251839,3.0,2732.5,2731.5,5.91698]
[1724438252021,4.46883293,2732.5,2731.6,0.957802]
[1724438252691,8.12851293,2732.5,2731.5,5.91698]
[1724438253024,3.65983,2732.4,2731.5,2.256]
[1724438253233,3.0,2732.3,2731.5,2.256]
[1724438253758,3.66008,2732.2,2731.5,2.256]
[1724438253900,3.66027,2732.1,2731.5,2.256]
[1724438254110,3.732035,2732.0,2731.2,2.3759]
[1724438254599,3.0,2731.9,2731.2,6.03728]
[1724438254797,3.0,2732.1,2731.2,9.69859]
[1724438255055,6.65992,2732.3,2731.2,6.03721]
[1724438255462,3.0,2732.3,2731.4,2.287]
[1724438255605,3.0,2732.3,2731.4,5.94812]
[1724438255804,3.0,2732.3,2731.5,0.594812]
[1724438256662,3.0,2732.3,2731.4,2.287]
[1724438256942,3.66018,2732.1,2731.4,2.287]
[1724438257143,3.66047,2731.9,2730.9,2.3269]
[1724438257343,3.0,2731.8,2730.9,2.3269]
[1724438257518,3.0,2731.8,2731.0,0.598874]
[1724438258733,3.0,2731.8,2731.0,4.260534]
[1724438259045,3.66046,2731.9,2731.0,0.598874]
[1724438259356,6.6606,2731.8,2730.9,2.3269]
[1724438259524,3.0,2731.7,2730.9,2.3269]
[1724438259725,3.0,2731.7,2731.0,3.66164]
[1724438259907,4.96532248,2732.4,2731.3,2.3269]
[1724438259908,3.0,2732.1,2731.3,2.3269]
[1724438260104,3.0,2732.3,2731.3,2.3269]
[1724438260315,3.65994,2732.3,2731.4,0.598816]
[1724438260520,3.0,2732.2,2731.3,2.3269]
[1724438260859,3.0,2732.4,2731.7,2.3213]
[1724438261042,3.65935,2732.8,2731.7,2.3213]
[1724438261215,3.65935,2732.8,2731.7,5.98195]
[1724438261411,5.97413,2732.9,2731.7,5.98195]
[1724438261610,3.65939,2732.7,2731.8,0.964269]
[1724438262560,3.65891,2733.1,2731.9,2.3213]
[1724438262756,3.6589,2733.1,2732.0,3.73348325]
[1724438262917,3.6589,2733.1,2732.1,2.3213]
[1724438263115,3.65925,2732.8,2732.1,2.92677833]
[1724438263330,3.65959,2732.6,2731.7,2.276]
[1724438263909,3.0,2732.5,2731.7,2.276]
[1724438264455,6.65969,2732.5,2731.7,2.276]
[1724438264657,3.0,2732.5,2731.7,2.276]
[1724438264857,3.0,2732.7,2731.7,2.276]
[1724438265056,6.65941,2732.7,2731.8,0.2276]
[1724438266261,6.65941,2732.7,2731.7,2.276]
[1724438266412,6.33193795,2733.2,2731.8,2.276]
[1724438266613,3.7887856,2733.3,2732.2,3.65995]
[1724438266811,3.7887856,2733.3,2732.1,2.276]
[1724438266812,0.1301956,2733.3,2732.1,2.276]
[1724438267032,3.65933,2732.8,2732.1,2.276]
[1724438267266,3.65962,2732.6,2732.1,2.276]
[1724438267469,3.65947,2732.7,2732.1,2.276]
[1724438267770,3.65974,2732.5,2731.5,2.276]
[1724438267972,7.3195,2732.5,2731.5,2.276]
[1724438268129,7.44676,2732.4,2731.5,2.276]
[1724438268325,3.65992,2732.3,2731.5,2.276]
[1724438268631,3.0,2732.2,2731.5,2.276]
[1724438269571,3.25045,2732.4,2731.5,2.276]
[1724438269572,6.65992,2732.3,2731.5,2.276]
[1724438269771,3.0,2732.3,2731.5,2.276]
[1724438269967,0.625045,2732.2,2731.5,2.276]
[1724438270931,3.0,2732.3,2731.5,2.276]
[1724438271146,2.4635,2732.8,2731.7,3.66061]
[1724438271147,3.0,2732.6,2731.7,3.66061]
[1724438271383,5.4635,2732.8,2731.8,2.276]
[1724438271577,9.12282,2732.8,2731.8,2.276]
[1724438272729,3.65946,2732.7,2731.8,2.276]
[1724438272928,3.912296,2732.6,2731.8,2.276]
[1724438273329,3.66001,2732.3,2731.2,2.2657]
[1724438273573,6.66005,2732.2,2731.2,2.2657]
[1724438274373,3.0,2732.2,2731.2,2.2657]
[1724438274557,6.66009,2732.2,2731.2,2.2657]
[1724438274759,1.25942,2732.1,2731.2,2.2657]
[1724438275081,1.25942,2732.1,2731.3,2.2657]
[1724438275288,1.25942,2732.1,2731.2,3.66135]
[1724438275289,3.0,2732.3,2731.4,2.2657]
[1724438275493,3.65947,2732.7,2731.6,2.2657]
[1724438275778,3.0,2732.6,2731.6,2.2657]
[1724438276678,3.0,2732.6,2731.8,3.66058]
[1724438276850,3.65917,2732.9,2731.9,2.2978]
[1724438276851,6.65933,2732.8,2731.9,2.2978]
[1724438277169,4.69124,2732.7,2731.9,2.2978]
[1724438277376,3.0,2732.6,2731.9,2.2978]
[1724438278130,1.03185,2732.7,2731.9,2.2978]
[1724438281203,3.0,2732.9,2732.0,3.66024]
[1724438281410,3.0,2733.0,2732.1,2.2697]
[1724438281721,6.65898,2733.0,2732.1,2.2697]
[1724438283212,10.31807,2733.0,2732.1,2.2697]
[1724438283534,1.031807,2732.9,2732.1,2.2697]
[1724438284621,3.0,2733.0,2732.1,5.92979]
[1724438284837,3.91813956,2733.2,2732.2,2.4578]
[1724438284997,3.65886,2733.1,2732.2,2.4578]
[1724438285377,3.65898,2733.0,2732.2,2.4578]
[1724438285599,0.365898,2732.9,2732.2,2.4578]
[1724438285994,3.65928,2732.8,2732.2,2.4578]
[1724438286442,0.365898,2732.9,2732.2,2.4578]
[1724438286665,3.365898,2732.9,2732.2,2.4578]
[1724438287032,3.0,2732.9,2732.3,2.4606]
[1724438287233,3.0,2733.1,2732.3,2.4606]
[1724438287829,6.65886,2733.1,2732.3,2.4606]
[1724438288028,10.3178,2733.1,2732.3,2.4606]
[1724438288329,3.65967,2732.5,2731.5,3.6609]
[1724438288529,3.0,2732.4,2731.7,2.4962]
[1724438288783,3.0,2732.4,2731.9,2.4962]
[1724438289083,3.0,2732.8,2731.9,2.4962]
[1724438289270,3.0,2732.8,2732.2,2.4335]
[1724438289471,0.3,2732.7,2732.2,2.4335]
[1724438289698,3.3,2732.7,2732.2,2.4335]
[1724438290162,3.3,2732.7,2731.4,3.66106]
[1724438290163,3.6596,2732.6,2731.5,2.4944]
[1724438290580,3.0,2732.5,2731.5,2.4944]
[1724438290763,6.65971,2732.5,2731.5,2.4944]
[1724438290963,1.30002265,2732.4,2731.5,2.4944]
[1724438291704,1.30002265,2732.4,2731.7,2.2673]
[1724438291999,3.0,2732.6,2731.7,5.92801]
[1724438292315,0.3,2732.7,2731.9,2.2673]
[1724438292316,3.0,2732.7,2731.9,2.2673]
[1724438292604,3.0,2732.7,2732.2,2.2673]
[1724438292763,3.0,2732.9,2732.2,2.2673]
[1724438293172,2.68091654,2733.1,2732.2,2.2673]
[1724438293367,2.68091654,2733.2,2732.5,2.2673]
[1724438293681,0.1301956,2733.3,2732.5,2.3404844]
[1724438293682,2.81111214,2733.3,2732.5,2.3404844]
[1724438293881,2.81111214,2733.3,2732.6,3.65942]
[1724438294133,0.1301956,2733.3,2732.8,3.65913]
[1724438294283,0.1301956,2733.3,2733.0,3.65896]
[1724438294464,0.1301956,2733.3,2733.1,0.60497308]
[1724438294953,0.1301956,2733.3,2733.2,2.3176]
[1724438299404,0.1301956,2733.3,2733.2,5.97631]
[1724438299998,0.1301956,2733.3,2733.2,2.3176]
[1724438302102,0.1301956,2733.3,2732.7,2.2773]
[1724438302286,0.1301956,2733.3,2732.7,6.530341]
[1724438302815,0.1301956,2733.3,2732.8,3.65921]
[1724438303014,0.1301956,2733.3,2733.0,3.65897]
[1724438303222,0.1301956,2733.3,2732.9,2.2773]
[1724438303716,0.1301956,2733.3,2732.9,5.93632]
[1724438303927,0.1301956,2733.3,2733.2,6.06441]
[1724438304790,0.1301956,2733.3,2733.2,2.4057]
[1724438305205,0.1301956,2733.3,2733.2,6.06441]
[1724438305420,0.1301956,2733.3,2733.2,2.4057]
[1724438305630,0.1301956,2733.3,2733.2,6.06441]
[1724438305937,0.1301956,2733.3,2733.2,7.0960982]
[1724438307592,0.1301956,2733.3,2733.2,3.4373882]
[1724438308045,0.1301956,2733.3,2733.2,10.7548082]
[1724438311735,0.1301956,2733.3,2733.2,7.0960982]
[1724438313869,2.67015762,2735.0,2733.4,2.4871]
[1724438314008,5.92249,2735.3,2734.3,2.4871]
[1724438314211,2.2665,2735.3,2734.3,2.4871]
[1724438314607,5.92241,2735.3,2734.3,2.4871]
[1724438314810,0.592241,2735.2,2733.5,0.24871]
[1724438315056,3.65672,2734.7,2733.6,6.1452]
[1724438315236,2.2665,2735.0,2733.7,3.65803]
[1724438315435,3.65659,2734.8,2733.7,3.65803]
[1724438315642,3.0,2734.7,2733.7,3.65803]
[1724438315836,3.665659,2734.7,2733.7,4.663224]
[1724438316042,3.665659,2734.7,2733.6,6.1452]
[1724438316043,3.65706,2734.5,2733.6,2.4871]
[1724438316368,2.2665,2734.6,2733.6,6.1452]
[1724438316513,5.92338,2734.6,2733.6,2.4871]
[1724438316723,3.0,2734.5,2733.6,9.80333]
[1724438316928,2.2665,2734.6,2733.6,6.14519]
[1724438317230,0.9588869,2734.5,2733.6,6.14519]
[1724438317461,3.9588869,2734.5,2733.6,6.14519]
[1724438318843,3.0,2734.5,2734.1,3.65747]
[1724438319056,3.0,2734.5,2733.6,2.4871]
[1724438319057,3.65672,2734.7,2733.6,6.14524]
[1724438319271,5.2665,2735.0,2733.6,2.4871]
[1724438319272,3.65711,2734.4,2733.6,2.4871]
[1724438319436,3.365711,2734.3,2733.6,2.4871]
[1724438319841,0.365711,2734.3,2733.6,2.4871]
[1724438320274,3.0,2734.5,2733.8,3.65781]
[1724438320479,3.0,2734.5,2733.7,3.658]
[1724438320480,2.2665,2734.6,2733.7,3.658]
[1724438320694,2.2665,2734.6,2733.6,2.4871]
[1724438320695,5.92345,2734.6,2733.6,2.4871]
[1724438320987,3.0,2734.5,2733.6,2.4871]
[1724438323995,2.2665,2734.6,2733.6,6.14516]
[1724438324874,2.2665,2734.6,2733.6,9.80326]
[1724438325268,2.2665,2734.6,2733.7,3.65802]
[1724438325997,2.2665,2734.6,2733.6,6.14516]
[1724438327068,2.383,2734.3,2733.3,3.65855]
[1724438327368,2.383,2734.3,2733.4,3.65835]
[1724438328222,2.383,2734.3,2733.4,7.31672]
[1724438328418,2.383,2734.3,2733.4,3.65835]
[1724438328915,2.383,2734.3,2733.6,3.65816]
[1724438329417,2.383,2734.3,2733.6,4.389811]
[1724438330017,2.383,2734.3,2733.6,0.731651]
[1724438330186,2.383,2734.3,2733.5,3.65829]
[1724438330698,2.383,2734.3,2733.6,3.65816]
[1724438331269,3.0,2734.5,2733.8,3.65783]
[1724438331469,3.0,2734.5,2733.8,3.6578]
[1724438331681,2.4185,2734.6,2733.9,3.65776]
[1724438331882,2.4185,2734.6,2733.9,4.389316]
[1724438332123,2.4185,2735.1,2734.2,3.6573]
[1724438332272,2.4185,2735.1,2734.2,3.65729]
[1724438332478,2.4185,2735.1,2734.1,2.4259]
[1724438332479,2.4185,2735.1,2734.4,3.65703]
[1724438332704,2.4185,2735.4,2734.6,3.6568]
[1724438332909,0.27685,2735.3,2734.6,6.0827]
[1724438333290,0.27685,2735.3,2734.6,2.4259]
[1724438333983,3.27685,2735.3,2734.6,2.4259]
[1724438334189,3.0,2735.2,2734.6,2.4259]
[1724438334700,3.0,2735.3,2734.6,2.4259]
[1724438335021,5.4185,2735.4,2734.7,4.264983]
[1724438335219,5.4185,2735.4,2734.7,0.608283]
[1724438336598,5.4185,2735.4,2734.7,4.264973]
[1724438337144,5.4185,2735.4,2734.7,0.608283]
[1724438337322,5.99535,2735.4,2734.6,2.4259]
[1724438337485,5.4185,2735.4,2734.6,2.4259]
[1724438339447,0.35,2735.5,2735.4,3.65577]
[1724438339643,0.35,2735.5,2735.4,2.4441]
[1724438340740,0.35,2735.5,2735.0,2.4441]
[1724438340968,0.35,2735.5,2735.1,0.610052]
[1724438341145,0.35,2735.5,2735.0,2.4441]
[1724438341556,0.35,2735.5,2734.7,2.3836]
[1724438341866,2.6587,2735.5,2734.7,2.3836]
[1724438342072,2.6587,2735.5,2734.4,6.04068]
[1724438342073,3.0,2735.4,2734.4,6.04068]
[1724438343180,3.0,2735.4,2734.5,3.65696]
[1724438343376,3.0,2735.4,2735.0,3.65629]
[1724438343577,0.35,2735.5,2734.7,5.95427]
[1724438343800,0.35,2735.5,2734.9,3.65641]
[1724438344513,0.35,2735.5,2735.0,3.65629]
[1724438344963,0.35,2735.5,2735.2,2.2977]
[1724438345160,0.35,2735.5,2735.3,0.22977]
[1724438345409,0.35,2735.5,2735.3,3.88566]
[1724438345711,0.35,2735.5,2735.4,3.65577]
[1724438346165,0.35,2735.5,2735.4,7.31154]
[1724438346952,0.35,2735.5,2735.4,9.60924]
[1724438347212,0.35,2735.5,2735.4,10.593141]
[1724438348883,0.35,2735.5,2735.4,6.937371]
[1724438355038,0.35,2735.5,2735.4,17.86581871]
[1724438355344,0.35,2735.5,2735.4,18.41581871]
[1724438355542,0.35,2735.5,2735.4,14.21004871]
[1724438355712,0.35,2735.5,2735.4,9.937371]
[1724438355900,0.35,2735.5,2735.4,14.143141]
[1724438357313,0.35,2735.5,2735.4,13.593141]
[1724438357513,0.35,2735.5,2735.4,14.143141]
[1724438358534,0.35,2735.5,2735.4,18.41581871]
[1724438359445,0.35,2735.5,2735.4,14.143141]
[1724438360940,0.35,2735.5,2735.4,13.593141]
[1724438361455,0.35,2735.5,2735.4,4.639671]
[1724438361962,0.35,2735.5,2735.4,3.65577]
[1724438362471,0.35,2735.5,2735.4,7.31154]
[1724438362639,0.35,2735.5,2735.4,3.65577]
[1724438363166,0.35,2735.5,2735.4,13.93381771]
[1724438363375,0.35,2735.5,2735.4,3.65577]
[1724438364215,0.35,2735.5,2735.4,7.677117]
[1724438365016,0.35,2735.5,2735.4,4.021347]
[1724438365213,0.35,2735.5,2735.4,3.65577]
[1724438368774,0.35,2735.5,2735.3,3.6558]
[1724438369628,0.35,2735.5,2735.1,3.65609]
[1724438369828,2.711,2735.5,2735.1,3.65609]
[1724438370071,2.711,2735.5,2735.3,3.6559]
[1724438370228,0.35,2735.5,2735.3,3.65583]
[1724438370428,0.35,2735.5,2735.4,7.31154]
[1724438370880,0.35,2735.5,2735.4,3.65577]
[1724438372493,0.35,2735.5,2735.4,7.31154]
[1724438373180,0.35,2735.5,2735.4,3.65577]
[1724438376599,0.35,2735.5,2735.4,13.90251771]
[1724438376755,0.35,2735.5,2735.4,15.29276948]
[1724438377661,0.35,2735.5,2735.4,5.04602177]
[1724438377894,0.35,2735.5,2735.2,3.65592]
[1724438378207,0.35,2735.5,2735.4,3.65577]
[1724438379461,0.35,2735.5,2735.3,3.6559]
[1724438379666,0.35,2735.5,2735.3,3.65582]
[1724438380019,0.35,2735.5,2735.4,3.65577]
[1724438380183,0.35,2735.5,2735.4,4.386929]
[1724438380953,0.35,2735.5,2735.4,3.65577]
[1724438381159,0.35,2735.5,2735.2,3.65591]
[1724438381313,2.6048,2735.5,2735.1,3.65609]
[1724438381507,2.6048,2735.5,2735.2,3.65599]
[1724438383012,2.6048,2735.5,2735.0,3.65619]
[1724438383266,2.6048,2735.5,2734.8,3.65651]
[1724438383267,2.6048,2735.5,2734.8,3.65648]
[1724438383563,2.6048,2735.5,2735.0,7.3124]
[1724438384263,2.6048,2735.5,2735.0,3.65618]
[1724438384409,2.6048,2735.5,2735.1,3.65609]
[1724438384655,2.6048,2735.5,2734.8,0.4260536]
[1724438384868,2.6048,2735.5,2734.9,3.65636]
[1724438385064,2.6048,2735.5,2734.8,3.65644]
[1724438385574,2.6048,2735.5,2734.7,3.65669]
[1724438385750,2.6048,2735.5,2734.5,3.65689]
[1724438385913,2.6048,2735.5,2734.1,6.02167]
[1724438385914,2.2548,2735.3,2734.6,3.65674]
[1724438386251,2.81528,2735.3,2734.7,3.65666]
[1724438386767,2.81528,2735.3,2734.8,3.65655]
[1724438386911,0.35,2735.5,2734.8,3.65648]
[1724438387307,0.35,2735.5,2734.9,3.65634]
[1724438387529,0.35,2735.5,2735.0,3.6563]
[1724438387914,0.35,2735.5,2735.1,3.65608]
[1724438388440,0.35,2735.5,2735.3,3.65581]
[1724438389130,0.35,2735.5,2734.2,0.76603836]
[1724438389131,2.2989,2734.6,2734.2,0.76603836]
[1724438389331,0.595573,2734.5,2733.7,3.65802]
[1724438389515,2.2989,2734.6,2733.7,3.65798]
[1724438389717,2.2989,2734.6,2733.8,3.65786]
[1724438390265,2.2989,2734.6,2733.7,3.65798]
[1724438390266,2.2989,2734.6,2733.7,3.65793]
[1724438390572,2.2989,2734.6,2733.8,3.65789]
[1724438391064,2.2989,2734.6,2733.8,3.65779]
[1724438391226,2.82879,2734.6,2733.9,3.65767]
[1724438391415,2.82879,2734.6,2734.0,3.65752]
[1724438391614,2.2989,2734.6,2734.0,3.65752]
[1724438392268,3.0,2735.0,2734.1,3.6574]
[1724438392269,2.4283,2734.9,2734.1,3.6574]
[1724438394160,2.4283,2734.9,2734.3,3.65722]
[1724438394366,2.4283,2734.9,2734.3,3.65716]
[1724438396051,2.4283,2734.9,2734.3,3.65715]
[1724438396251,2.4283,2734.9,2734.3,4.022865]
[1724438396497,2.4283,2734.9,2734.3,0.365715]
[1724438396999,2.4283,2734.9,2734.4,3.65706]
[1724438397155,2.4283,2734.9,2734.3,4.022835]
[1724438398752,2.4283,2734.9,2734.4,3.6571]
[1724438399047,2.4283,2734.9,2734.4,0.7679935]
[1724438400055,2.4283,2734.9,2734.4,4.4250935]
[1724438400855,2.4283,2734.9,2734.4,0.7679935]
[1724438403376,2.4283,2734.9,2734.4,4.4250635]
[1724438403571,2.4277,2735.2,2734.5,3.65695]
[1724438404196,0.35,2735.5,2735.0,3.65621]
[1724438404197,2.7777,2735.5,2735.0,3.65621]
[1724438404351,0.35,2735.5,2735.2,3.65602]
[1724438404560,0.35,2735.5,2734.7,5.94059]
[1724438404805,2.4277,2735.4,2734.9,3.65636]
[1724438405360,0.35,2735.5,2735.1,3.65607]
[1724438405592,0.35,2735.5,2735.3,3.65582]
[1724438406581,0.35,2735.5,2735.3,3.65581]
[1724438406903,0.35,2735.5,2735.3,7.31162]
[1724438407088,0.35,2735.5,2735.4,0.731162]
[1724438407404,0.35,2735.5,2735.4,4.386932]
[1724438407560,0.35,2735.5,2734.9,3.65637]
[1724438407764,0.35,2735.5,2735.1,3.65616]
[1724438408175,0.35,2735.5,2735.1,3.65608]
[1724438409712,0.35,2735.5,2735.1,7.31215]
[1724438409907,0.35,2735.5,2735.2,0.731215]
[1724438410201,0.35,2735.5,2735.1,3.65607]
[1724438410799,0.35,2735.5,2735.1,7.31215]
[1724438411031,0.35,2735.5,2735.4,3.65577]
[1724438414903,0.35,2735.5,2735.3,3.65589]
[1724438415095,0.35,2735.5,2735.3,3.65581]
[1724438415326,0.35,2735.5,2735.3,8.042831]
[1724438415535,0.35,2735.5,2735.3,4.387001]
[1724438416089,0.35,2735.5,2735.1,3.65609]
[1724438416490,0.35,2735.5,2735.1,7.31218]
[1724438417144,0.35,2735.5,2735.1,3.65609]
[1724438417348,0.35,2735.5,2735.0,3.65629]
[1724438417629,0.35,2735.5,2735.2,3.65602]
[1724438417830,0.35,2735.5,2735.2,4.38723]
[1724438417989,0.35,2735.5,2735.4,3.65577]
[1724438419060,0.35,2735.5,2735.4,7.31154]
[1724438419212,0.35,2735.5,2735.4,3.65577]
[1724438419736,0.35,2735.5,2735.4,7.31154]
[1724438419922,0.35,2735.5,2735.4,8.344925]
[1724438423039,0.35,2735.5,2735.4,4.689155]
[1724438423338,0.35,2735.5,2735.4,3.65577]
[1724438424273,0.35,2735.5,2735.4,7.31154]
[1724438424859,0.35,2735.5,2735.4,3.65577]
[1724438425060,0.35,2735.5,2735.4,7.31154]
[1724438425577,0.35,2735.5,2735.0,3.65623]
[1724438425578,2.399,2735.4,2735.0,3.65623]
[1724438425891,2.399,2735.2,2734.4,3.65699]
[1724438426118,5.399,2735.2,2734.4,3.65699]
[1724438426777,2.7773,2735.5,2734.6,3.65676]
[1724438426966,2.7773,2735.5,2734.8,3.65645]
[1724438427285,3.05503,2735.5,2734.8,3.65645]
[1724438427648,3.05503,2735.5,2734.9,3.6564]
[1724438428192,3.05503,2735.5,2734.8,3.65645]
[1724438428986,0.35,2735.5,2734.6,2.4925]
[1724438429179,0.35,2735.5,2735.0,3.65619]
[1724438429984,0.35,2735.5,2735.2,3.65603]
[1724438430495,0.35,2735.5,2735.4,3.65577]
[1724438431499,0.35,2735.5,2735.4,7.31154]
[1724438431649,0.35,2735.5,2735.4,8.042694]
[1724438435078,0.35,2735.5,2735.4,14.162464]
[1724438438630,0.1301956,2736.0,2735.9,13.4342]
[1724438438932,0.1301956,2736.0,2735.9,16.4342]
[1724438439130,0.1301956,2736.0,2735.9,23.07551977]
[1724438439421,0.02148,2736.0,2735.9,26.73061977]
[1724438439593,0.02148,2736.0,2735.9,23.07551977]
[1724438440189,0.02148,2736.0,2735.9,19.42041977]
[1724438442419,0.02148,2736.0,2735.9,16.95151977]
[1724438444647,0.02148,2736.0,2735.9,19.21801977]
[1724438446504,0.02148,2736.0,2735.9,15.01291977]
[1724438446703,0.02148,2736.0,2735.9,9.74641977]
[1724438446910,0.02148,2736.0,2735.9,3.6551]
[1724438447405,0.02148,2736.0,2735.9,7.3102]
[1724438449271,0.02148,2736.0,2735.9,10.9653]
[1724438449626,0.02148,2736.0,2735.9,7.3102]
[1724438453566,0.02148,2736.0,2735.9,20.64747771]
[1724438453782,0.02148,2736.0,2735.9,23.26222548]
[1724438455228,0.02148,2736.0,2735.9,14.78444777]
[1724438455425,0.02148,2736.0,2735.9,3.6551]
[1724438455643,0.02148,2736.0,2735.9,7.3102]
[1724438456276,0.02148,2736.0,2735.9,3.6551]
[1724438456491,0.02148,2736.0,2735.9,7.3102]
[1724438456780,2.4821,2737.5,2736.6,5.94006]
[1724438456921,2.4821,2737.5,2736.7,0.594006]
[1724438457236,2.4821,2737.5,2737.2,3.65336]
[1724438457439,2.4821,2737.5,2737.1,3.65339]
[1724438458185,3.65184,2738.4,2737.2,3.65336]
[1724438458186,2.3263,2738.4,2737.2,3.65336]
[1724438458482,2.55893,2738.3,2737.4,3.65299]
[1724438458681,2.3263,2738.3,2737.2,3.65331]
[1724438458846,2.3043,2738.2,2737.3,3.6532]
[1724438459340,2.3043,2738.2,2737.4,3.65304]
[1724438459660,0.23043,2738.1,2737.4,7.30603]
[1724438459836,3.23043,2738.1,2737.4,3.65299]
[1724438460370,0.23043,2738.1,2737.5,3.65285]
[1724438460724,0.23043,2738.1,2737.6,3.65282]
[1724438461233,0.23043,2738.1,2736.7,3.594006]
[1724438461234,2.3043,2738.2,2737.9,3.6524]
[1724438461515,2.3043,2738.2,2737.7,3.65268]
[1724438461516,0.1301956,2738.7,2737.8,4.27267771]
[1724438462026,0.1301956,2738.7,2738.0,3.65224]
[1724438462163,0.1301956,2738.7,2737.9,3.65241]
[1724438462369,0.1301956,2738.7,2737.8,3.65255]